[Event "Titled Tuesday Blitz August 15 Late 2023"]
[White "Drygalov, Sergey"]
[Black "Bortnyk, Olexandr"]
[WhiteFideId "24171743"]
[BlackFideId "14120828"]
[WhiteElo "2973"]
[BlackElo "3080"]
[Result "1-0"]
[Round "11"]
[TimeControl "180+1"]
[Date "2023.08.15"]
[WhiteClock "0:00:10"]
[BlackClock "0:00:03"]
[Board "6"]

1. d4 {[%clk 0:02:56]}  Nf6 {[%clk 0:02:58]} 2. c4 {[%clk 0:02:54]}  b6 {[%clk 0:02:58]} 3. f3 {[%clk 0:02:54]}  Bb7 {[%clk 0:02:59]} 4. e4 {[%clk 0:02:54]}  Nc6 {[%clk 0:02:59]} 5. Nc3 {[%clk 0:02:43]}  e5 {[%clk 0:02:59]} 6. d5 {[%clk 0:02:44]}  Nd4 {[%clk 0:03:00]} 7. Nge2 {[%clk 0:02:41]}  Bc5 {[%clk 0:02:56]} 8. a3 {[%clk 0:02:24]}  a5 {[%clk 0:02:53]} 9. Nxd4 {[%clk 0:02:21]}  Bxd4 {[%clk 0:02:47]} 10. Nb5 {[%clk 0:02:08]}  Bc5 {[%clk 0:02:40]} 11. d6 {[%clk 0:02:08]}  Nxe4 {[%clk 0:02:29]} 12. Nxc7+ {[%clk 0:01:41]}  Kf8 {[%clk 0:02:29]} 13. fxe4 {[%clk 0:01:39]}  Qh4+ {[%clk 0:02:29]} 14. Kd2 {[%clk 0:01:40]}  Bxe4 {[%clk 0:02:28]} 15. Bd3 {[%clk 0:01:15]}  Bxd3 {[%clk 0:02:06]} 16. Kxd3 {[%clk 0:01:15]}  Rc8 {[%clk 0:01:59]} 17. Kc2 {[%clk 0:00:51]}  Qe4+ {[%clk 0:01:46]} 18. Kc3 {[%clk 0:00:40]}  a4 {[%clk 0:01:29]} 19. Qd3 {[%clk 0:00:18]}  Bd4+ {[%clk 0:01:09]} 20. Kc2 {[%clk 0:00:17]}  Qc6 {[%clk 0:01:10]} 21. Bd2 {[%clk 0:00:16]}  g6 {[%clk 0:00:59]} 22. Rac1 {[%clk 0:00:16]}  Kg7 {[%clk 0:00:59]} 23. Kb1 {[%clk 0:00:16]}  Qxg2 {[%clk 0:00:57]} 24. Nb5 {[%clk 0:00:16]}  Bc5 {[%clk 0:00:55]} 25. Rhf1 {[%clk 0:00:14]}  Rhf8 {[%clk 0:00:49]} 26. Bc3 {[%clk 0:00:15]}  f6 {[%clk 0:00:48]} 27. h4 {[%clk 0:00:14]}  Qg4 {[%clk 0:00:47]} 28. Rh1 {[%clk 0:00:13]}  h5 {[%clk 0:00:47]} 29. Ka1 {[%clk 0:00:12]}  Kh7 {[%clk 0:00:47]} 30. Bd2 {[%clk 0:00:12]}  e4 {[%clk 0:00:44]} 31. Qc2 {[%clk 0:00:11]}  e3 {[%clk 0:00:43]} 32. Bc3 {[%clk 0:00:12]}  Rce8 {[%clk 0:00:43]} 33. Nc7 {[%clk 0:00:11]}  Re4 {[%clk 0:00:43]} 34. Nd5 {[%clk 0:00:12]}  Qe6 {[%clk 0:00:41]} 35. Bxf6 {[%clk 0:00:10]}  e2 {[%clk 0:00:33]} 36. Bc3 {[%clk 0:00:09]}  Rxc4 {[%clk 0:00:32]} 37. Qd3 {[%clk 0:00:09]}  Rg4 {[%clk 0:00:27]} 38. Rhe1 {[%clk 0:00:08]}  Rg2 {[%clk 0:00:27]} 39. Bb4 {[%clk 0:00:07]}  Rf5 {[%clk 0:00:25]} 40. Nc3 {[%clk 0:00:04]}  Bxb4 {[%clk 0:00:25]} 41. axb4 {[%clk 0:00:05]}  a3 {[%clk 0:00:22]} 42. bxa3 {[%clk 0:00:05]}  Qb3 {[%clk 0:00:22]} 43. Rxe2 {[%clk 0:00:04]}  Qxa3+ {[%clk 0:00:22]} 44. Kb1 {[%clk 0:00:05]}  Qxb4+ {[%clk 0:00:22]} 45. Kc2 {[%clk 0:00:05]}  Rff2 {[%clk 0:00:21]} 46. Re1 {[%clk 0:00:04]}  Qxh4 {[%clk 0:00:20]} 47. Rxf2 {[%clk 0:00:02]}  Rxf2+ {[%clk 0:00:21]} 48. Re2 {[%clk 0:00:03]}  Qf4 {[%clk 0:00:19]} 49. Rxf2 {[%clk 0:00:02]}  Qxf2+ {[%clk 0:00:20]} 50. Kb3 {[%clk 0:00:03]}  h4 {[%clk 0:00:20]} 51. Ne4 {[%clk 0:00:03]}  Qf7+ {[%clk 0:00:18]} 52. Kb4 {[%clk 0:00:03]}  Qf5 {[%clk 0:00:18]} 53. Qd4 {[%clk 0:00:04]}  h3 {[%clk 0:00:17]} 54. Nf6+ {[%clk 0:00:04]}  Kh6 {[%clk 0:00:16]} 55. Qh4+ {[%clk 0:00:05]}  Kg7 {[%clk 0:00:16]} 56. Ne8+ {[%clk 0:00:05]}  Kg8 {[%clk 0:00:14]} 57. Qe7 {[%clk 0:00:06]}  Qc5+ {[%clk 0:00:07]} 58. Kb3 {[%clk 0:00:06]}  Qd5+ {[%clk 0:00:06]} 59. Kc3 {[%clk 0:00:07]}  Qf7 {[%clk 0:00:03]} 60. Nf6+ {[%clk 0:00:07]}  Kg7 {[%clk 0:00:03]} 61. Ne8+ {[%clk 0:00:07]}  Kg8 {[%clk 0:00:04]} 62. Qe5 {[%clk 0:00:07]}  Qf3+ {[%clk 0:00:02]} 63. Kb4 {[%clk 0:00:07]}  h2 {[%clk 0:00:02]} 64. Nf6+ {[%clk 0:00:07]}  Qxf6 {[%clk 0:00:01]} 65. Qxf6 {[%clk 0:00:07]}  h1=Q {[%clk 0:00:02]} 66. Qd8+ {[%clk 0:00:07]}  Kg7 {[%clk 0:00:03]} 67. Qxd7+ {[%clk 0:00:08]}  Kh6 {[%clk 0:00:03]} 68. Qe7 {[%clk 0:00:09]}  Qb1+ {[%clk 0:00:03]} 69. Kc4 {[%clk 0:00:08]}  Qc2+ {[%clk 0:00:03]} 70. Kb5 {[%clk 0:00:09]}  Qc5+ {[%clk 0:00:03]} 71. Ka6 {[%clk 0:00:09]}  b5 {[%clk 0:00:04]} 72. Qf8+ {[%clk 0:00:09]}  Kh5 {[%clk 0:00:04]} 73. Qh8+ {[%clk 0:00:08]}  Kg4 {[%clk 0:00:05]} 74. Qd8 {[%clk 0:00:07]}  Qc6+ {[%clk 0:00:04]} 75. Ka5 {[%clk 0:00:08]}  Qc3+ {[%clk 0:00:01]} 76. Kxb5 {[%clk 0:00:07]}  Qb3+ {[%clk 0:00:02]} 77. Kc6 {[%clk 0:00:08]}  Qa4+ {[%clk 0:00:02]} 78. Kc7 {[%clk 0:00:07]}  Qa7+ {[%clk 0:00:02]} 79. Kc8 {[%clk 0:00:08]}  Qa8+ {[%clk 0:00:01]} 80. Kd7 {[%clk 0:00:08]}  Qa4+ {[%clk 0:00:02]} 81. Ke7 {[%clk 0:00:09]}  Qe4+ {[%clk 0:00:03]} 82. Kf8 {[%clk 0:00:08]}  Qf5+ {[%clk 0:00:03]} 83. Ke8 {[%clk 0:00:09]}  Qb5+ {[%clk 0:00:02]} 84. Qd7+ {[%clk 0:00:09]}  Qf5 {[%clk 0:00:02]} 85. Qxf5+ {[%clk 0:00:07]}  gxf5 {[%clk 0:00:03]} 86. d7 {[%clk 0:00:08]}  f4 {[%clk 0:00:03]} 87. d8=Q {[%clk 0:00:09]}  f3 {[%clk 0:00:04]} 88. Qd1 {[%clk 0:00:09]}  Kg3 {[%clk 0:00:05]} 89. Qf1 {[%clk 0:00:09]}  f2 {[%clk 0:00:03]} 90. Ke7 {[%clk 0:00:10]} 1-0


[Site "https://www.chess.com"]

[Event "Titled Tuesday Blitz August 15 Late 2023"]
[White "Bluebaum, Matthias"]
[Black "Kramnik, Vladimir"]
[WhiteFideId "24651516"]
[BlackFideId "4101588"]
[WhiteElo "3027"]
[BlackElo "2962"]
[Result "1-0"]
[Round "11"]
[TimeControl "180+1"]
[Date "2023.08.15"]
[WhiteClock "0:01:33"]
[BlackClock "0:00:00"]
[Board "7"]

1. d4 {[%clk 0:03:00]}  d5 {[%clk 0:02:59]} 2. c4 {[%clk 0:03:01]}  e6 {[%clk 0:03:00]} 3. Nc3 {[%clk 0:03:02]}  Nf6 {[%clk 0:03:00]} 4. Bg5 {[%clk 0:02:58]}  Be7 {[%clk 0:02:59]} 5. Nf3 {[%clk 0:02:58]}  h6 {[%clk 0:02:58]} 6. Bxf6 {[%clk 0:02:58]}  Bxf6 {[%clk 0:02:58]} 7. Qc2 {[%clk 0:02:57]}  O-O {[%clk 0:02:57]} 8. O-O-O {[%clk 0:02:57]}  b5 {[%clk 0:02:57]} 9. Nxb5 {[%clk 0:02:47]}  c5 {[%clk 0:02:57]} 10. e4 {[%clk 0:02:46]}  Na6 {[%clk 0:02:40]} 11. a3 {[%clk 0:02:43]}  cxd4 {[%clk 0:02:36]} 12. e5 {[%clk 0:02:43]}  Bxe5 {[%clk 0:02:29]} 13. Nxe5 {[%clk 0:02:33]}  Qg5+ {[%clk 0:02:29]} 14. Qd2 {[%clk 0:02:29]}  Qxe5 {[%clk 0:02:29]} 15. Qxd4 {[%clk 0:02:30]}  Qg5+ {[%clk 0:02:18]} 16. f4 {[%clk 0:02:30]}  Qe7 {[%clk 0:02:18]} 17. cxd5 {[%clk 0:02:24]}  exd5 {[%clk 0:02:18]} 18. Nc3 {[%clk 0:02:22]}  Nc5 {[%clk 0:02:05]} 19. Nxd5 {[%clk 0:02:22]}  Qd6 {[%clk 0:01:30]} 20. Bc4 {[%clk 0:02:22]}  Bf5 {[%clk 0:01:06]} 21. Qe5 {[%clk 0:02:23]}  Qxe5 {[%clk 0:00:58]} 22. fxe5 {[%clk 0:02:23]}  Rfe8 {[%clk 0:00:48]} 23. b4 {[%clk 0:02:05]}  Ne6 {[%clk 0:00:44]} 24. Kb2 {[%clk 0:02:03]}  Be4 {[%clk 0:00:39]} 25. Rd2 {[%clk 0:01:51]}  Kh7 {[%clk 0:00:21]} 26. Re1 {[%clk 0:01:51]}  Bg6 {[%clk 0:00:21]} 27. g3 {[%clk 0:01:38]}  Rac8 {[%clk 0:00:19]} 28. Bb3 {[%clk 0:01:38]}  Ng5 {[%clk 0:00:18]} 29. Re3 {[%clk 0:01:38]}  Ne4 {[%clk 0:00:15]} 30. Rde2 {[%clk 0:01:35]}  Rxe5 {[%clk 0:00:15]} 31. Nf4 {[%clk 0:01:36]}  f5 {[%clk 0:00:13]} 32. g4 {[%clk 0:01:33]}  Be8 {[%clk 0:00:03]} 33. gxf5 {[%clk 0:01:32]}  Bc6 {[%clk 0:00:03]} 34. Bc2 {[%clk 0:01:32]}  Rce8 {[%clk 0:00:00]} 35. Nd3 {[%clk 0:01:33]} 1-0


[Site "https://www.chess.com"]

[Event "Titled Tuesday Blitz August 15 Late 2023"]
[White "Andreikin, Dmitry"]
[Black "Kazakouski, Valery"]
[WhiteFideId "4158814"]
[BlackFideId "13507443"]
[WhiteElo "3005"]
[BlackElo "2941"]
[Result "1-0"]
[Round "11"]
[TimeControl "180+1"]
[Date "2023.08.15"]
[WhiteClock "0:00:04"]
[BlackClock "0:00:01"]
[Board "8"]

1. d4 {[%clk 0:03:00]}  Nf6 {[%clk 0:02:51]} 2. c4 {[%clk 0:03:01]}  e6 {[%clk 0:02:51]} 3. Nf3 {[%clk 0:03:00]}  d5 {[%clk 0:02:51]} 4. Bg5 {[%clk 0:03:00]}  Bb4+ {[%clk 0:02:50]} 5. Nc3 {[%clk 0:02:59]}  h6 {[%clk 0:02:50]} 6. Bxf6 {[%clk 0:02:58]}  Qxf6 {[%clk 0:02:51]} 7. e3 {[%clk 0:02:58]}  O-O {[%clk 0:02:50]} 8. Rc1 {[%clk 0:02:58]}  dxc4 {[%clk 0:02:43]} 9. Bxc4 {[%clk 0:02:57]}  c5 {[%clk 0:02:44]} 10. O-O {[%clk 0:02:52]}  cxd4 {[%clk 0:02:44]} 11. Ne4 {[%clk 0:02:49]}  Qe7 {[%clk 0:02:44]} 12. a3 {[%clk 0:02:44]}  Ba5 {[%clk 0:02:43]} 13. exd4 {[%clk 0:02:43]}  Nd7 {[%clk 0:02:28]} 14. Ne5 {[%clk 0:02:35]}  Nf6 {[%clk 0:02:24]} 15. Qf3 {[%clk 0:02:29]}  Bb6 {[%clk 0:02:18]} 16. Rfd1 {[%clk 0:02:24]}  Rd8 {[%clk 0:02:17]} 17. Nc5 {[%clk 0:02:05]}  a5 {[%clk 0:01:53]} 18. a4 {[%clk 0:01:53]}  Ra7 {[%clk 0:01:51]} 19. Bb5 {[%clk 0:01:47]}  Nd5 {[%clk 0:01:43]} 20. g3 {[%clk 0:01:43]}  Nb4 {[%clk 0:01:38]} 21. h4 {[%clk 0:01:39]}  Bc7 {[%clk 0:01:38]} 22. Ne4 {[%clk 0:01:30]}  b6 {[%clk 0:01:32]} 23. Qh5 {[%clk 0:00:48]}  f6 {[%clk 0:00:55]} 24. Nc6 {[%clk 0:00:29]}  Nxc6 {[%clk 0:00:54]} 25. Bxc6 {[%clk 0:00:30]}  Qf7 {[%clk 0:00:50]} 26. Qf3 {[%clk 0:00:25]}  Ba6 {[%clk 0:00:46]} 27. d5 {[%clk 0:00:23]}  Bc8 {[%clk 0:00:20]} 28. dxe6 {[%clk 0:00:18]}  Bxe6 {[%clk 0:00:18]} 29. Rxd8+ {[%clk 0:00:13]}  Bxd8 {[%clk 0:00:19]} 30. Nd6 {[%clk 0:00:13]}  Qf8 {[%clk 0:00:18]} 31. Nf5 {[%clk 0:00:08]}  Rc7 {[%clk 0:00:14]} 32. Re1 {[%clk 0:00:09]}  Bf7 {[%clk 0:00:11]} 33. Bd5 {[%clk 0:00:09]}  Kh7 {[%clk 0:00:08]} 34. h5 {[%clk 0:00:05]}  Rc5 {[%clk 0:00:07]} 35. Bxf7 {[%clk 0:00:05]}  Qxf7 {[%clk 0:00:08]} 36. Qg4 {[%clk 0:00:05]}  Rd5 {[%clk 0:00:04]} 37. b3 {[%clk 0:00:05]}  Rc5 {[%clk 0:00:04]} 38. Re8 {[%clk 0:00:04]}  Bc7 {[%clk 0:00:03]} 39. Re7 {[%clk 0:00:04]}  Rc1+ {[%clk 0:00:01]} 40. Kh2 {[%clk 0:00:04]} 1-0


[Site "https://www.chess.com"]

[Event "Titled Tuesday Blitz August 15 Late 2023"]
[White "Grigoriants, Sergey"]
[Black "Schekachikhin, Maksim"]
[WhiteFideId "4130804"]
[BlackFideId "24177830"]
[WhiteElo "2977"]
[BlackElo "2616"]
[Result "1-0"]
[Round "11"]
[TimeControl "180+1"]
[Date "2023.08.15"]
[WhiteClock "0:00:05"]
[BlackClock "0:01:11"]
[Board "10"]

1. d4 {[%clk 0:02:59]}  d5 {[%clk 0:02:59]} 2. c4 {[%clk 0:02:59]}  c6 {[%clk 0:02:59]} 3. Nc3 {[%clk 0:02:59]}  Nf6 {[%clk 0:02:58]} 4. e3 {[%clk 0:02:58]}  a6 {[%clk 0:02:56]} 5. Qc2 {[%clk 0:02:56]}  e6 {[%clk 0:02:55]} 6. b3 {[%clk 0:02:55]}  Bd6 {[%clk 0:02:35]} 7. Nf3 {[%clk 0:02:53]}  O-O {[%clk 0:02:35]} 8. Be2 {[%clk 0:02:51]}  Nbd7 {[%clk 0:02:35]} 9. O-O {[%clk 0:02:51]}  b5 {[%clk 0:02:35]} 10. e4 {[%clk 0:02:45]}  dxe4 {[%clk 0:02:33]} 11. Nxe4 {[%clk 0:02:43]}  Nxe4 {[%clk 0:02:32]} 12. Qxe4 {[%clk 0:02:44]}  Bb7 {[%clk 0:02:31]} 13. c5 {[%clk 0:02:42]}  Be7 {[%clk 0:02:31]} 14. Bf4 {[%clk 0:02:40]}  Nf6 {[%clk 0:02:30]} 15. Qc2 {[%clk 0:02:38]}  Nd5 {[%clk 0:02:30]} 16. Be5 {[%clk 0:02:37]}  Bf6 {[%clk 0:02:29]} 17. Rad1 {[%clk 0:02:34]}  b4 {[%clk 0:02:27]} 18. Bd3 {[%clk 0:02:20]}  g6 {[%clk 0:02:22]} 19. Rfe1 {[%clk 0:01:50]}  a5 {[%clk 0:02:22]} 20. Bxf6 {[%clk 0:01:41]}  Qxf6 {[%clk 0:02:13]} 21. Ne5 {[%clk 0:01:41]}  Rfd8 {[%clk 0:01:48]} 22. Bc4 {[%clk 0:01:24]}  Ne7 {[%clk 0:01:27]} 23. Rd3 {[%clk 0:01:01]}  Nf5 {[%clk 0:01:24]} 24. Nxf7 {[%clk 0:00:40]}  Kxf7 {[%clk 0:01:23]} 25. Rxe6 {[%clk 0:00:41]}  Qxe6 {[%clk 0:01:23]} 26. Bxe6+ {[%clk 0:00:41]}  Kxe6 {[%clk 0:01:23]} 27. g4 {[%clk 0:00:42]}  Ne7 {[%clk 0:01:17]} 28. Qe2+ {[%clk 0:00:33]}  Kf7 {[%clk 0:01:17]} 29. Rf3+ {[%clk 0:00:31]}  Ke8 {[%clk 0:01:15]} 30. Qe6 {[%clk 0:00:24]}  Bc8 {[%clk 0:01:14]} 31. Qf7+ {[%clk 0:00:19]}  Kd7 {[%clk 0:01:14]} 32. Re3 {[%clk 0:00:17]}  Re8 {[%clk 0:01:15]} 33. d5 {[%clk 0:00:15]}  cxd5 {[%clk 0:01:14]} 34. Qe6+ {[%clk 0:00:05]}  Kd8 {[%clk 0:01:12]} 35. Qb6+ {[%clk 0:00:05]}  Kd7 {[%clk 0:01:11]} 36. Qd6# {[%clk 0:00:05]} 1-0


[Site "https://www.chess.com"]

[Event "Titled Tuesday Blitz August 15 Late 2023"]
[White "Elsa167"]
[Black "Hoang, Thi Bao Tram"]
[BlackFideId "12401102"]
[WhiteElo "2936"]
[BlackElo "2694"]
[Result "1-0"]
[Round "11"]
[TimeControl "180+1"]
[Date "2023.08.15"]
[WhiteClock "0:00:51"]
[BlackClock "0:00:00"]
[Board "12"]

1. f4 {[%clk 0:03:00]}  g6 {[%clk 0:02:56]} 2. Nf3 {[%clk 0:03:00]}  Bg7 {[%clk 0:02:56]} 3. g3 {[%clk 0:03:01]}  b6 {[%clk 0:02:55]} 4. Bg2 {[%clk 0:03:01]}  Bb7 {[%clk 0:02:56]} 5. O-O {[%clk 0:03:02]}  c5 {[%clk 0:02:51]} 6. d3 {[%clk 0:03:02]}  e6 {[%clk 0:02:46]} 7. e4 {[%clk 0:03:01]}  Ne7 {[%clk 0:02:46]} 8. c3 {[%clk 0:02:55]}  O-O {[%clk 0:02:46]} 9. Nbd2 {[%clk 0:02:52]}  d6 {[%clk 0:02:42]} 10. Qe1 {[%clk 0:02:39]}  Nbc6 {[%clk 0:02:33]} 11. g4 {[%clk 0:02:39]}  Ba6 {[%clk 0:02:23]} 12. Qe2 {[%clk 0:02:37]}  Qd7 {[%clk 0:02:22]} 13. g5 {[%clk 0:02:35]}  d5 {[%clk 0:02:20]} 14. e5 {[%clk 0:02:31]}  Rfd8 {[%clk 0:01:59]} 15. Rd1 {[%clk 0:02:29]}  Nf5 {[%clk 0:01:55]} 16. Nf1 {[%clk 0:02:29]}  Rac8 {[%clk 0:01:41]} 17. Ng3 {[%clk 0:02:29]}  Nce7 {[%clk 0:01:37]} 18. Bd2 {[%clk 0:02:27]}  b5 {[%clk 0:01:32]} 19. a3 {[%clk 0:02:26]}  h6 {[%clk 0:01:22]} 20. Nxf5 {[%clk 0:02:20]}  Nxf5 {[%clk 0:01:22]} 21. Bh3 {[%clk 0:02:19]}  Bb7 {[%clk 0:01:15]} 22. Bxf5 {[%clk 0:02:17]}  exf5 {[%clk 0:01:14]} 23. gxh6 {[%clk 0:02:16]}  Bxh6 {[%clk 0:01:13]} 24. d4 {[%clk 0:02:17]}  cxd4 {[%clk 0:01:11]} 25. Nxd4 {[%clk 0:02:17]}  a6 {[%clk 0:01:01]} 26. Kh1 {[%clk 0:02:13]}  Qe7 {[%clk 0:01:01]} 27. Rg1 {[%clk 0:02:14]}  Kh7 {[%clk 0:00:56]} 28. Rg3 {[%clk 0:02:13]}  Rh8 {[%clk 0:00:51]} 29. Rag1 {[%clk 0:02:12]}  Rcg8 {[%clk 0:00:49]} 30. Qg2 {[%clk 0:02:09]}  Qd7 {[%clk 0:00:43]} 31. e6 {[%clk 0:01:50]}  Qe7 {[%clk 0:00:35]} 32. Re1 {[%clk 0:01:46]}  Qf6 {[%clk 0:00:19]} 33. Rge3 {[%clk 0:01:32]}  Re8 {[%clk 0:00:16]} 34. Re5 {[%clk 0:01:25]}  Re7 {[%clk 0:00:15]} 35. exf7 {[%clk 0:01:24]}  Rxe5 {[%clk 0:00:13]} 36. fxe5 {[%clk 0:01:24]}  Qxf7 {[%clk 0:00:13]} 37. e6 {[%clk 0:01:15]}  Qe7 {[%clk 0:00:12]} 38. Rg1 {[%clk 0:01:03]}  Qf6 {[%clk 0:00:11]} 39. Qh3 {[%clk 0:00:58]}  Kg7 {[%clk 0:00:11]} 40. Bxh6+ {[%clk 0:00:57]}  Rxh6 {[%clk 0:00:11]} 41. Qg3 {[%clk 0:00:56]}  f4 {[%clk 0:00:09]} 42. Qg4 {[%clk 0:00:52]}  Rh5 {[%clk 0:00:00]} 43. Qxh5 {[%clk 0:00:51]} 1-0


[Site "https://www.chess.com"]

[Event "Titled Tuesday Blitz August 15 Late 2023"]
[White "Ibarra Jerez, Jose Carlos"]
[Black "Veiga, Jose Francisco R P Neves"]
[WhiteFideId "2226332"]
[BlackFideId "1930087"]
[WhiteElo "2897"]
[BlackElo "2680"]
[Result "1-0"]
[Round "11"]
[TimeControl "180+1"]
[Date "2023.08.15"]
[WhiteClock "0:00:07"]
[BlackClock "0:00:04"]
[Board "14"]

1. e4 {[%clk 0:03:00]}  c6 {[%clk 0:02:52]} 2. Nf3 {[%clk 0:03:00]}  d5 {[%clk 0:02:52]} 3. d3 {[%clk 0:03:00]}  Qc7 {[%clk 0:02:52]} 4. exd5 {[%clk 0:03:00]}  cxd5 {[%clk 0:02:52]} 5. c4 {[%clk 0:03:01]}  Nf6 {[%clk 0:02:47]} 6. Nc3 {[%clk 0:03:01]}  dxc4 {[%clk 0:02:42]} 7. dxc4 {[%clk 0:03:01]}  Bg4 {[%clk 0:02:41]} 8. h3 {[%clk 0:02:51]}  Bh5 {[%clk 0:02:38]} 9. Nb5 {[%clk 0:02:48]}  Qc8 {[%clk 0:02:33]} 10. Bf4 {[%clk 0:02:46]}  e5 {[%clk 0:02:29]} 11. Qa4 {[%clk 0:02:37]}  Nc6 {[%clk 0:02:22]} 12. Nxe5 {[%clk 0:02:19]}  Bb4+ {[%clk 0:01:52]} 13. Qxb4 {[%clk 0:02:10]}  Nxb4 {[%clk 0:01:53]} 14. Nd6+ {[%clk 0:02:11]}  Ke7 {[%clk 0:01:53]} 15. Nxc8+ {[%clk 0:02:10]}  Rhxc8 {[%clk 0:01:54]} 16. g4 {[%clk 0:01:52]}  Bg6 {[%clk 0:01:51]} 17. Nxg6+ {[%clk 0:01:44]}  hxg6 {[%clk 0:01:52]} 18. O-O-O {[%clk 0:01:45]}  Rd8 {[%clk 0:01:03]} 19. Bg2 {[%clk 0:01:43]}  Nd3+ {[%clk 0:00:55]} 20. Rxd3 {[%clk 0:01:43]}  Rxd3 {[%clk 0:00:56]} 21. Bxb7 {[%clk 0:01:37]}  Rad8 {[%clk 0:00:52]} 22. Be3 {[%clk 0:01:29]}  R8d7 {[%clk 0:00:47]} 23. Bf3 {[%clk 0:01:25]}  Rc7 {[%clk 0:00:43]} 24. b3 {[%clk 0:01:23]}  Nd5 {[%clk 0:00:36]} 25. Kc2 {[%clk 0:01:13]}  Nb4+ {[%clk 0:00:35]} 26. Kb2 {[%clk 0:01:13]}  a5 {[%clk 0:00:31]} 27. a3 {[%clk 0:01:00]}  Nc6 {[%clk 0:00:27]} 28. Kc2 {[%clk 0:00:49]}  Ne5 {[%clk 0:00:24]} 29. Be2 {[%clk 0:00:40]}  Rd6 {[%clk 0:00:17]} 30. Kc3 {[%clk 0:00:31]}  f6 {[%clk 0:00:17]} 31. Re1 {[%clk 0:00:29]}  Kf7 {[%clk 0:00:16]} 32. Bd4 {[%clk 0:00:26]}  Nc6 {[%clk 0:00:15]} 33. Be3 {[%clk 0:00:24]}  Ne5 {[%clk 0:00:15]} 34. f4 {[%clk 0:00:22]}  Nc6 {[%clk 0:00:15]} 35. Bf3 {[%clk 0:00:21]}  Re7 {[%clk 0:00:14]} 36. Bd5+ {[%clk 0:00:20]}  Ke8 {[%clk 0:00:11]} 37. Kd2 {[%clk 0:00:10]}  a4 {[%clk 0:00:07]} 38. Bc5 {[%clk 0:00:10]}  Rxe1 {[%clk 0:00:04]} 39. Bxd6 {[%clk 0:00:09]}  axb3 {[%clk 0:00:02]} 40. Bxc6+ {[%clk 0:00:09]}  Kd8 {[%clk 0:00:02]} 41. Kc3 {[%clk 0:00:07]}  b2 {[%clk 0:00:03]} 42. Kxb2 {[%clk 0:00:07]}  Re2+ {[%clk 0:00:03]} 43. Kc3 {[%clk 0:00:07]}  Re6 {[%clk 0:00:04]} 44. c5 {[%clk 0:00:07]}  Re3+ {[%clk 0:00:04]} 45. Kb4 {[%clk 0:00:07]}  Rxh3 {[%clk 0:00:05]} 46. a4 {[%clk 0:00:07]}  Rh4 {[%clk 0:00:02]} 47. a5 {[%clk 0:00:06]}  Rxg4 {[%clk 0:00:02]} 48. a6 {[%clk 0:00:07]}  Rg1 {[%clk 0:00:02]} 49. a7 {[%clk 0:00:06]}  Rb1+ {[%clk 0:00:03]} 50. Kc4 {[%clk 0:00:07]}  Ra1 {[%clk 0:00:03]} 51. a8=Q+ {[%clk 0:00:06]}  Rxa8 {[%clk 0:00:04]} 52. Bxa8 {[%clk 0:00:07]} 1-0


[Site "https://www.chess.com"]

[Event "Titled Tuesday Blitz August 15 Late 2023"]
[White "Zierk, Steven"]
[Black "Manukyan, Sargis A."]
[WhiteFideId "2034255"]
[BlackFideId "13303970"]
[WhiteElo "2866"]
[BlackElo "2620"]
[Result "1-0"]
[Round "11"]
[TimeControl "180+1"]
[Date "2023.08.15"]
[WhiteClock "0:00:12"]
[BlackClock "0:00:03"]
[Board "15"]

1. e4 {[%clk 0:03:00]}  c5 {[%clk 0:03:00]} 2. Nf3 {[%clk 0:03:01]}  d6 {[%clk 0:03:00]} 3. d4 {[%clk 0:03:01]}  cxd4 {[%clk 0:03:01]} 4. Nxd4 {[%clk 0:03:02]}  Nf6 {[%clk 0:03:01]} 5. Nc3 {[%clk 0:03:02]}  g6 {[%clk 0:03:02]} 6. Be3 {[%clk 0:03:01]}  Bg7 {[%clk 0:03:02]} 7. Be2 {[%clk 0:03:01]}  O-O {[%clk 0:03:03]} 8. O-O {[%clk 0:03:01]}  Nc6 {[%clk 0:03:03]} 9. Nb3 {[%clk 0:03:01]}  Be6 {[%clk 0:02:59]} 10. f4 {[%clk 0:03:00]}  Qc8 {[%clk 0:02:59]} 11. Kh1 {[%clk 0:02:44]}  Rd8 {[%clk 0:02:57]} 12. Qe1 {[%clk 0:02:36]}  d5 {[%clk 0:02:47]} 13. f5 {[%clk 0:02:12]}  gxf5 {[%clk 0:02:40]} 14. exf5 {[%clk 0:02:12]}  Bxf5 {[%clk 0:02:39]} 15. Qh4 {[%clk 0:01:59]}  Bg6 {[%clk 0:02:19]} 16. Bh6 {[%clk 0:01:52]}  Bxh6 {[%clk 0:02:08]} 17. Qxh6 {[%clk 0:01:53]}  d4 {[%clk 0:02:08]} 18. Nb5 {[%clk 0:01:52]}  a6 {[%clk 0:02:07]} 19. Na3 {[%clk 0:01:51]}  b5 {[%clk 0:02:05]} 20. Rac1 {[%clk 0:01:44]}  Rd5 {[%clk 0:01:55]} 21. Bf3 {[%clk 0:01:41]}  Rd6 {[%clk 0:01:47]} 22. Rfe1 {[%clk 0:01:33]}  e5 {[%clk 0:01:23]} 23. Bxc6 {[%clk 0:01:28]}  Qxc6 {[%clk 0:01:21]} 24. Qh4 {[%clk 0:01:26]}  Nd7 {[%clk 0:01:03]} 25. Nd2 {[%clk 0:01:20]}  Re8 {[%clk 0:00:48]} 26. c4 {[%clk 0:01:09]}  b4 {[%clk 0:00:45]} 27. Nc2 {[%clk 0:01:06]}  Bxc2 {[%clk 0:00:39]} 28. Rxc2 {[%clk 0:01:07]}  Rg6 {[%clk 0:00:40]} 29. Nf3 {[%clk 0:01:04]}  f6 {[%clk 0:00:39]} 30. Nxd4 {[%clk 0:00:58]}  Qd6 {[%clk 0:00:37]} 31. Nf5 {[%clk 0:00:48]}  Qd3 {[%clk 0:00:35]} 32. Rf2 {[%clk 0:00:47]}  Nc5 {[%clk 0:00:26]} 33. Ne3 {[%clk 0:00:36]}  Qe4 {[%clk 0:00:23]} 34. Qxe4 {[%clk 0:00:21]}  Nxe4 {[%clk 0:00:24]} 35. Rf3 {[%clk 0:00:18]}  Rd8 {[%clk 0:00:24]} 36. Nd5 {[%clk 0:00:18]}  Kg7 {[%clk 0:00:24]} 37. Rxe4 {[%clk 0:00:17]}  a5 {[%clk 0:00:23]} 38. h4 {[%clk 0:00:16]}  h5 {[%clk 0:00:24]} 39. Re2 {[%clk 0:00:15]}  Rg4 {[%clk 0:00:23]} 40. Ne3 {[%clk 0:00:14]}  Rxh4+ {[%clk 0:00:22]} 41. Kg1 {[%clk 0:00:14]}  Kg6 {[%clk 0:00:19]} 42. Ref2 {[%clk 0:00:14]}  Rf8 {[%clk 0:00:13]} 43. c5 {[%clk 0:00:13]}  Rd4 {[%clk 0:00:12]} 44. Rg3+ {[%clk 0:00:12]}  Kh7 {[%clk 0:00:11]} 45. Nf5 {[%clk 0:00:12]}  Rd1+ {[%clk 0:00:11]} 46. Kh2 {[%clk 0:00:12]}  Rc1 {[%clk 0:00:11]} 47. Rg7+ {[%clk 0:00:12]}  Kh8 {[%clk 0:00:12]} 48. Rf3 {[%clk 0:00:12]}  Rxc5 {[%clk 0:00:10]} 49. Rh3 {[%clk 0:00:12]}  Rf7 {[%clk 0:00:03]} 50. Rxh5# {[%clk 0:00:12]} 1-0


[Site "https://www.chess.com"]